bitfinex/quotes_BTCUSD_20240810
["timestamp","ask_amount","ask_price","bid_price","bid_amount"]
[1723307994331,0.94495441,60763.0,60762.0,0.0009152]
[1723307994534,0.86852238,60763.0,60762.0,0.0009152]
[1723307994744,0.94492718,60763.0,60762.0,0.0009152]
[1723307995541,0.94592718,60763.0,60762.0,0.0009152]
[1723307995751,1.02472718,60763.0,60762.0,0.0009152]
[1723307998685,0.85015418,60763.0,60762.0,0.0009152]
[1723307998887,1.64015418,60763.0,60762.0,0.0009152]
[1723307999522,1.65015418,60763.0,60762.0,0.0009152]
[1723307999862,1.64015418,60763.0,60762.0,0.0009152]
[1723308000658,1.51407953,60763.0,60762.0,0.0009152]
[1723308000888,0.77122269,60763.0,60762.0,0.0009152]
[1723308001270,0.77108481,60763.0,60762.0,0.0009152]
[1723308002805,0.45529231,60763.0,60762.0,0.0009152]
[1723308003006,0.40814915,60763.0,60762.0,0.0009152]
[1723308003207,0.24357615,60763.0,60762.0,0.0009152]
[1723308003475,0.24357615,60763.0,60762.0,0.1032032]
[1723308003476,0.06144526,60763.0,60762.0,0.1032032]
[1723308003753,0.06144526,60763.0,60762.0,0.3280032]
[1723308003754,0.03099227,60763.0,60762.0,0.3280032]
[1723308004016,0.03099227,60763.0,60762.0,0.4925792]
[1723308004254,0.03099227,60763.0,60762.0,0.1669152]
[1723308004464,0.00660442,60763.0,60762.0,0.1669152]
[1723308004667,0.03555875,60763.0,60762.0,0.1669152]
[1723308005162,0.03552161,60763.0,60762.0,0.1669152]
[1723308005567,0.03452161,60763.0,60762.0,0.1669152]
[1723308006202,0.03452161,60763.0,60762.0,0.1719152]
[1723308006401,0.03352585,60763.0,60762.0,0.1719152]
[1723308006740,0.03352585,60763.0,60762.0,0.1759152]
[1723308006942,0.03352585,60763.0,60762.0,0.1106152]
[1723308007585,0.03352585,60763.0,60762.0,0.1929032]
[1723308007998,0.02892143,60763.0,60762.0,0.3574792]
[1723308008314,0.00460471,60763.0,60762.0,0.1929032]
[1723308008544,0.02892143,60763.0,60762.0,0.1929032]
[1723308008701,0.02884104,60766.0,60765.0,0.02]
[1723308009685,0.02884104,60766.0,60765.0,0.493252]
[1723308009803,0.02884104,60768.0,60767.0,0.256844]
[1723308010006,0.000832,60769.0,60768.0,0.41444]
[1723308010228,0.000832,60769.0,60768.0,0.24988]
[1723308010509,0.02963006,60769.0,60768.0,0.24988]
[1723308010717,0.000832,60769.0,60768.0,0.41444]
[1723308010936,0.000832,60769.0,60768.0,0.55112096]
[1723308011148,0.000832,60769.0,60768.0,0.38656096]
[1723308011351,0.000832,60769.0,60768.0,0.24988]
[1723308011560,0.02959559,60769.0,60768.0,0.24988]
[1723308011771,0.000832,60769.0,60768.0,0.24988]
[1723308012286,0.001832,60769.0,60768.0,0.11128]
[1723308012494,0.002832,60769.0,60768.0,0.11828]
[1723308012702,0.03162927,60769.0,60768.0,0.11828]
[1723308012901,0.03062927,60769.0,60768.0,0.10928]
[1723308013128,0.001832,60769.0,60768.0,0.10928]
[1723308013349,0.001832,60769.0,60768.0,0.027]
[1723308013553,0.03060001,60769.0,60768.0,0.027]
[1723308013757,0.03060001,60769.0,60768.0,0.017]
[1723308014362,0.03160001,60769.0,60768.0,0.10728]
[1723308014601,0.03160001,60769.0,60768.0,0.11132169]
[1723308014775,0.002832,60769.0,60768.0,0.11132169]
[1723308015011,0.001832,60769.0,60768.0,0.11332169]
[1723308015141,0.03162879,60769.0,60768.0,0.11232169]
[1723308015525,0.03162878,60769.0,60768.0,0.11828]
[1723308016012,0.002832,60769.0,60768.0,0.11828]
[1723308017810,0.0072257,60769.0,60768.0,0.11828]
[1723308018012,0.0072257,60769.0,60768.0,0.26508]
[1723308018434,0.0072257,60769.0,60768.0,0.24508]
[1723308019088,0.002832,60769.0,60768.0,0.24508]
[1723308019439,0.002832,60769.0,60768.0,0.42964]
[1723308019657,0.002832,60769.0,60768.0,0.24508]
[1723308019846,0.002832,60769.0,60768.0,0.26508]
[1723308022912,0.002832,60769.0,60768.0,0.42964]
[1723308025078,0.002832,60769.0,60768.0,0.26508]
[1723308025278,0.002832,60769.0,60768.0,0.42964]
[1723308026999,0.002832,60769.0,60768.0,0.40964]
[1723308027332,0.002832,60769.0,60768.0,0.42964]
[1723308027618,0.002832,60769.0,60768.0,0.40964]
[1723308028693,0.002832,60769.0,60768.0,0.42964]
[1723308029959,0.002832,60769.0,60768.0,0.40964]
[1723308030992,0.002832,60769.0,60768.0,0.42964]
[1723308032521,0.002832,60769.0,60768.0,0.56632075]
[1723308032845,0.002832,60769.0,60768.0,0.56632074]
[1723308033073,0.03144501,60769.0,60768.0,0.56632074]
[1723308034279,0.03144501,60769.0,60768.0,0.50262074]
[1723308037060,0.03144501,60769.0,60768.0,0.41952075]
[1723308037404,0.00852413,60769.0,60768.0,0.28284]
[1723308037614,0.03711497,60769.0,60768.0,0.41952074]
[1723308039406,0.00852413,60769.0,60768.0,0.28284]
[1723308039718,0.00852413,60769.0,60768.0,0.41952074]
[1723308039937,0.03711358,60769.0,60768.0,0.41952074]
[1723308040574,0.03711645,60769.0,60768.0,0.41952074]
[1723308040791,0.03711645,60769.0,60768.0,0.17268123]
[1723308040792,0.03711664,60769.0,60768.0,0.17268123]
[1723308041616,0.03711664,60769.0,60768.0,0.25496123]
[1723308042063,0.26479464,60769.0,60768.0,0.16268123]
[1723308042435,0.18251664,60769.0,60768.0,0.16268123]
[1723308044243,0.18268082,60769.0,60768.0,0.16268725]
[1723308045157,0.18268082,60769.0,60768.0,0.15268725]
[1723308045378,0.18268082,60769.0,60768.0,0.16268725]
[1723308046186,0.18268082,60769.0,60768.0,0.15268725]
[1723308046422,0.26495882,60769.0,60768.0,0.15268725]
[1723308046587,0.26495882,60769.0,60768.0,0.16268725]
[1723308047403,0.18268082,60769.0,60768.0,0.16268725]
[1723308047783,0.18270948,60769.0,60768.0,0.026]
[1723308047985,0.18270948,60769.0,60768.0,0.16268708]
[1723308048199,0.18270948,60769.0,60768.0,0.026]
[1723308048397,0.18270948,60769.0,60768.0,0.16268709]
[1723308049241,0.18270948,60769.0,60768.0,0.15268709]
[1723308049441,0.18270575,60769.0,60768.0,0.16268709]
[1723308051589,0.18270575,60769.0,60768.0,0.16268486]
[1723308051790,0.18270575,60769.0,60768.0,0.15268486]
[1723308051993,0.18270575,60769.0,60768.0,0.16268486]
[1723308052189,0.18270575,60769.0,60768.0,0.15268486]
[1723308052658,0.18270575,60769.0,60768.0,0.16268486]
[1723308052862,0.18270575,60769.0,60768.0,0.24496486]
[1723308053104,0.03161362,60769.0,60768.0,0.33656486]
[1723308053307,0.03161362,60769.0,60768.0,0.50112486]
[1723308053681,0.03709445,60769.0,60768.0,0.50112486]
[1723308053934,0.03709445,60769.0,60768.0,0.44324]
[1723308054132,0.03702795,60769.0,60768.0,0.57992189]
[1723308054340,0.03702795,60769.0,60768.0,0.55992189]
[1723308054725,0.03154712,60769.0,60768.0,0.55992189]
[1723308054894,0.002832,60769.0,60768.0,0.42324]
[1723308055094,0.03153157,60769.0,60768.0,0.559921]
[1723308056066,0.002832,60769.0,60768.0,0.42324]
[1723308056265,0.002832,60769.0,60768.0,0.55992117]
[1723308056667,0.002832,60769.0,60768.0,0.57992117]
[1723308056870,0.0315275,60769.0,60768.0,0.57992117]
[1723308057080,0.002832,60769.0,60768.0,0.57992096]
[1723308057278,0.03152957,60769.0,60768.0,0.57992096]
[1723308059249,0.03153841,60769.0,60768.0,0.49143551]
[1723308059451,0.03153841,60769.0,60768.0,0.8173206]
[1723308059671,0.03153841,60769.0,60768.0,0.62810973]
[1723308059879,0.03153372,60769.0,60768.0,0.62810953]
[1723308060077,0.03153372,60769.0,60768.0,0.57881714]
[1723308060549,0.03153372,60769.0,60768.0,0.57881955]
[1723308060778,0.03153372,60769.0,60768.0,0.17267955]
[1723308060929,0.17858416,60769.0,60768.0,0.036]
[1723308061138,0.17858416,60769.0,60768.0,0.11828]
[1723308061139,0.14988244,60769.0,60768.0,0.11828]
[1723308061302,0.1785826,60769.0,60768.0,0.25496567]
[1723308061502,0.1785826,60769.0,60768.0,0.17268567]
[1723308061698,0.17313216,60769.0,60768.0,0.17268567]
[1723308061945,0.17868575,60769.0,60768.0,0.25496337]
[1723308063630,0.03708575,60769.0,60768.0,0.39952337]
[1723308064072,0.03163531,60769.0,60768.0,0.39952337]
[1723308064613,0.03708575,60769.0,60768.0,0.39952337]
[1723308065299,0.03708575,60769.0,60768.0,0.28284]
[1723308065680,0.03163531,60769.0,60768.0,0.28284]
[1723308066439,0.002832,60769.0,60768.0,0.41952088]
[1723308066613,0.002832,60769.0,60768.0,0.4688188]
[1723308067143,0.002832,60769.0,60768.0,0.41952088]
[1723308067516,0.002832,60769.0,60768.0,0.39952088]
[1723308067694,0.002832,60769.0,60768.0,0.4488188]
[1723308068039,0.002832,60769.0,60768.0,0.4688188]
[1723308068577,0.002832,60769.0,60768.0,0.33213792]
[1723308071259,0.002832,60769.0,60768.0,0.41093792]
[1723308071483,0.002832,60769.0,60768.0,0.43558688]
[1723308071735,0.002832,60769.0,60768.0,0.36164]
[1723308071977,0.002832,60769.0,60768.0,0.41093708]
[1723308072219,0.002832,60769.0,60768.0,0.39093708]
[1723308072642,0.002832,60769.0,60768.0,0.41093708]
[1723308073361,0.002832,60769.0,60768.0,0.36164]
[1723308074381,0.002832,60769.0,60768.0,0.41095868]
[1723308074765,0.002832,60769.0,60768.0,0.5747736]
[1723308075800,0.002832,60769.0,60768.0,0.71145242]
[1723308076402,0.002832,60769.0,60768.0,0.46809242]
[1723308076781,0.002832,60769.0,60768.0,0.41877374]
[1723308077775,0.03156764,60769.0,60768.0,0.41877374]
[1723308078625,0.17126764,60769.0,60768.0,0.15267882]
[1723308078828,0.17126764,60769.0,60768.0,0.17267882]
[1723308079023,0.17629821,60769.0,60768.0,0.17267882]
[1723308080131,0.14756257,60769.0,60768.0,0.036]
[1723308080332,0.17636605,60769.0,60768.0,0.17268637]
[1723308083420,0.17641017,60769.0,60768.0,0.17268637]
[1723308085225,0.17641017,60769.0,60768.0,0.036]
[1723308085430,0.17638493,60769.0,60768.0,0.036]
[1723308090392,0.17637665,60769.0,60768.0,0.036]
[1723308093503,0.14756257,60769.0,60768.0,0.036]
[1723308093929,0.17637142,60769.0,60768.0,0.036]
[1723308094756,0.17637142,60769.0,60768.0,0.09828]
[1723308094966,0.03667142,60769.0,60768.0,0.2549667]
[1723308095707,0.03667142,60769.0,60768.0,0.58334162]
[1723308095925,0.00786257,60769.0,60768.0,1.22371284]
[1723308096128,0.002832,60769.0,60768.0,1.41642965]
[1723308096337,0.002832,60769.0,60768.0,1.67212371]
[1723308097147,0.000832,60769.0,60768.0,1.65612071]
[1723308097279,0.001832,60769.0,60768.0,1.67011364]
[1723308097491,0.001832,60769.0,60768.0,1.65700023]
[1723308097836,0.000832,60769.0,60768.0,1.63100023]
[1723308098043,0.000832,60769.0,60768.0,1.64447531]
[1723308098044,0.001832,60769.0,60768.0,1.64447531]
[1723308098195,0.000832,60769.0,60768.0,1.39910613]
[1723308098625,0.001832,60769.0,60768.0,1.399106]
[1723308099031,0.001832,60769.0,60768.0,1.413106]
[1723308099768,0.001832,60769.0,60768.0,1.2654096]
[1723308100622,0.001832,60769.0,60768.0,1.413106]
[1723308100837,0.001832,60769.0,60768.0,1.50453749]
[1723308101235,0.001832,60769.0,60768.0,1.33373185]
[1723308101424,0.001832,60769.0,60768.0,1.48127007]
[1723308101662,0.001832,60769.0,60768.0,1.48327007]
[1723308101864,0.001832,60769.0,60768.0,1.6540654]
[1723308102069,0.001832,60769.0,60768.0,1.50652449]
[1723308102441,0.001832,60769.0,60768.0,1.65402289]
[1723308103388,0.001832,60769.0,60768.0,1.33572364]
[1723308103792,0.001832,60769.0,60768.0,1.34572364]
[1723308104405,0.001832,60769.0,60768.0,1.277403]
[1723308104823,0.001832,60769.0,60768.0,1.267403]
[1723308105016,0.001832,60769.0,60768.0,1.27740101]
[1723308105215,0.001832,60769.0,60768.0,1.37740101]
[1723308106774,0.001832,60769.0,60768.0,1.39740101]
[1723308107176,0.08164045,60784.0,60769.0,0.01]
[1723308107397,0.08164045,60784.0,60783.0,0.510097]
[1723308107600,0.000831,60785.0,60784.0,0.43129]
[1723308107760,0.000831,60785.0,60784.0,0.59510492]
[1723308109437,0.141931,60785.0,60784.0,0.43058892]
[1723308110417,0.141931,60785.0,60784.0,0.43258892]
[1723308110620,0.141931,60785.0,60784.0,0.4366309]
[1723308110824,0.141931,60785.0,60784.0,0.4406309]
[1723308112134,0.141931,60785.0,60784.0,0.272774]
[1723308112551,0.141931,60785.0,60784.0,0.108258]
[1723308118637,0.141931,60785.0,60784.0,0.272774]
[1723308119835,0.141931,60785.0,60784.0,0.108258]
[1723308120037,0.141931,60785.0,60784.0,0.1091721]
[1723308122296,0.17044069,60785.0,60784.0,0.1091721]
[1723308122655,0.17622256,60785.0,60784.0,0.1091721]
[1723308123145,0.17622256,60785.0,60784.0,0.2736881]
[1723308123929,0.14771287,60785.0,60784.0,0.2736881]
[1723308124124,0.14771287,60785.0,60784.0,0.41033045]
[1723308124328,0.14771287,60785.0,60784.0,0.41033345]
[1723308124329,0.17620246,60785.0,60784.0,0.41033345]
[1723308124912,0.14771287,60785.0,60784.0,0.39032673]
[1723308125108,0.17621119,60785.0,60784.0,0.39032673]
[1723308125712,0.17621119,60785.0,60784.0,0.41032673]
[1723308126294,0.17621119,60785.0,60784.0,0.39032673]
[1723308126945,0.17621119,60785.0,60784.0,0.41032672]
[1723308127345,0.17621119,60785.0,60784.0,0.2536881]
[1723308127573,0.17621119,60785.0,60784.0,0.41032672]
[1723308127787,0.17621119,60785.0,60784.0,0.39032672]
[1723308128127,0.17621119,60785.0,60784.0,0.41032672]
[1723308128335,0.17621119,60785.0,60784.0,0.39032672]
[1723308128536,0.03511119,60785.0,60784.0,0.55414164]
[1723308128849,0.000831,60785.0,60784.0,0.60201902]
[1723308129076,0.00661262,60785.0,60784.0,0.73865695]
[1723308129249,0.00661262,60785.0,60784.0,0.71865695]
[1723308129800,0.00661262,60785.0,60784.0,0.73865695]
[1723308130177,0.000831,60785.0,60784.0,0.71865695]
[1723308131191,0.000831,60785.0,60784.0,0.73865695]
[1723308131396,0.000831,60785.0,60784.0,0.71865695]
[1723308132037,0.000831,60785.0,60784.0,0.71865674]
[1723308132426,0.000831,60785.0,60784.0,0.73865674]
[1723308132617,0.000831,60785.0,60784.0,0.80105674]
[1723308132939,0.000831,60785.0,60784.0,0.82105674]
[1723308132940,0.00661258,60785.0,60784.0,0.82105674]
[1723308133161,0.03511992,60785.0,60784.0,0.80105674]
[1723308133353,0.03511992,60785.0,60784.0,0.73865674]
[1723308133354,0.02933834,60785.0,60784.0,0.73865674]
[1723308133555,0.10673834,60785.0,60784.0,0.73865674]
[1723308133787,0.17143834,60785.0,60784.0,0.73865674]
[1723308138405,0.17144541,60785.0,60784.0,0.73865841]
[1723308138953,0.17141387,60785.0,60784.0,0.73866645]
[1723308139896,0.17140655,60785.0,60784.0,0.73866645]
[1723308140100,0.142931,60785.0,60784.0,0.60201902]
[1723308140396,0.17140599,60785.0,60784.0,0.73866533]
[1723308140805,0.17140599,60785.0,60784.0,0.71866533]
[1723308140806,0.02930599,60785.0,60784.0,0.71866533]
[1723308141206,0.02930599,60785.0,60784.0,0.73866533]
[1723308143409,0.02930599,60785.0,60784.0,0.71866533]
[1723308143610,0.02930599,60785.0,60784.0,0.76790577]
[1723308144145,0.17140599,60785.0,60784.0,0.14356041]
[1723308144336,0.17140599,60785.0,60784.0,0.16356041]
[1723308144581,0.17140599,60785.0,60784.0,0.0269141]
[1723308144582,0.1771184,60785.0,60784.0,0.0269141]
[1723308146021,0.1771184,60785.0,60784.0,0.2736881]
[1723308146154,0.0350184,60785.0,60784.0,0.41033742]
[1723308146977,0.0350184,60785.0,60784.0,0.57485342]
[1723308147857,0.0350184,60785.0,60784.0,0.41033742]
[1723308148332,0.0350184,60785.0,60784.0,0.73866834]
[1723308148758,0.02930599,60785.0,60784.0,0.73866834]
[1723308149383,0.02930599,60785.0,60784.0,1.04198434]
[1723308149600,0.02930599,60785.0,60784.0,1.14051734]
[1723308149601,0.000831,60785.0,60784.0,1.14051734]
[1723308149967,0.000831,60785.0,60784.0,1.04197062]
[1723308150163,0.000831,60785.0,60784.0,1.13445281]
[1723308150734,0.000831,60785.0,60784.0,1.13745281]
[1723308150856,0.000831,60785.0,60784.0,1.13445281]
[1723308151252,0.000831,60785.0,60784.0,1.14445281]
[1723308151253,0.001831,60785.0,60784.0,1.14445281]
[1723308151461,0.001831,60785.0,60784.0,1.14645281]
[1723308152168,0.001831,60785.0,60784.0,1.14445281]
[1723308152339,0.001831,60785.0,60784.0,1.15345281]
[1723308152572,0.001831,60785.0,60784.0,1.13345281]
[1723308152700,0.001831,60785.0,60784.0,1.15345281]
[1723308152902,0.001831,60785.0,60784.0,1.01681721]
[1723308153136,0.001831,60785.0,60784.0,1.15345144]
[1723308153311,0.001831,60785.0,60784.0,1.15345161]
[1723308156529,0.001831,60785.0,60784.0,1.17807007]
[1723308157107,0.001831,60785.0,60784.0,1.05496733]
[1723308158104,0.000831,60785.0,60784.0,1.04496733]
[1723308158304,0.000831,60785.0,60784.0,1.03596733]
[1723308158518,0.000831,60785.0,60784.0,1.04896733]
[1723308159089,0.000831,60785.0,60784.0,1.03596733]
[1723308159273,0.000831,60785.0,60784.0,1.13437868]
[1723308159400,0.000831,60785.0,60784.0,1.11437868]
[1723308159792,0.000831,60785.0,60784.0,1.14837868]
[1723308159996,0.000831,60785.0,60784.0,1.16137868]
[1723308160240,0.000831,60785.0,60784.0,1.1483759]
[1723308160631,0.000831,60785.0,60784.0,1.1623759]
[1723308161083,0.000831,60785.0,60784.0,1.3498919]
[1723308161307,0.000831,60785.0,60784.0,1.25148055]
[1723308161521,0.000831,60785.0,60784.0,1.42970894]
[1723308161776,0.000831,60785.0,60784.0,1.81631734]
[1723308161991,0.000831,60785.0,60784.0,1.48435915]
[1723308162211,0.000831,60785.0,60784.0,1.43005209]
[1723308162811,0.000831,60785.0,60784.0,1.49835937]
[1723308163188,0.000831,60785.0,60784.0,1.43005209]
[1723308163393,0.000831,60785.0,60784.0,1.41605209]
[1723308163802,0.000831,60785.0,60784.0,1.43005209]
[1723308164370,0.000831,60785.0,60784.0,1.66912039]
[1723308164524,0.000831,60785.0,60784.0,1.50035732]
[1723308164693,0.000831,60785.0,60784.0,1.81864684]
[1723308165092,0.000831,60785.0,60784.0,1.46929672]
[1723308165288,0.000831,60785.0,60784.0,1.50035732]
[1723308165488,0.000831,60785.0,60784.0,1.67111909]
[1723308165700,0.000831,60785.0,60784.0,1.66911828]
[1723308166251,0.000831,60785.0,60784.0,1.8164538]
[1723308167656,0.000831,60785.0,60784.0,1.23146022]
[1723308167857,0.000831,60785.0,60784.0,0.92514422]
[1723308168203,0.000831,60785.0,60784.0,1.10220666]
[1723308168204,0.148831,60785.0,60784.0,1.10220666]
[1723308168403,0.148831,60785.0,60784.0,1.07764728]
[1723308171148,0.148831,60785.0,60784.0,1.07766593]
[1723308171701,0.148831,60785.0,60784.0,0.94103808]
[1723308171906,0.148831,60785.0,60784.0,1.07766578]
[1723308172542,0.148831,60785.0,60784.0,1.07766948]
[1723308174807,0.000831,60785.0,60784.0,0.9656107]
[1723308175019,0.000831,60785.0,60784.0,1.10223357]
[1723308175741,0.000831,60785.0,60784.0,1.00395789]
[1723308175973,0.000831,60785.0,60784.0,1.10223357]
[1723308176840,0.000831,60785.0,60784.0,1.10221208]
[1723308177469,0.000831,60785.0,60784.0,1.00395789]
[1723308177681,0.000831,60785.0,60784.0,1.07764838]
[1723308178733,0.000831,60785.0,60784.0,0.92102551]
[1723308178879,0.000831,60785.0,60784.0,1.05765072]
[1723308179079,0.000831,60785.0,60784.0,1.07765072]
[1723308179979,0.000831,60785.0,60784.0,1.00396023]
[1723308180202,0.000831,60785.0,60784.0,1.10221442]
[1723308180402,0.000831,60785.0,60784.0,1.00396023]
[1723308180630,0.000831,60785.0,60784.0,1.07764818]
[1723308180835,0.000831,60785.0,60784.0,1.07764908]
[1723308181203,0.000831,60785.0,60784.0,0.94102387]
[1723308181438,0.000831,60785.0,60784.0,1.00396006]
[1723308182259,0.000831,60785.0,60784.0,1.07765145]
[1723308182554,0.000831,60785.0,60784.0,1.10221186]
[1723308182796,0.000831,60785.0,60784.0,1.00395776]
[1723308184538,0.000831,60785.0,60784.0,1.10220956]
[1723308184750,0.000831,60785.0,60784.0,0.96558682]
[1723308184947,0.000831,60785.0,60784.0,1.10220738]
[1723308185158,0.000831,60785.0,60784.0,1.28104268]
[1723308185360,0.000831,60785.0,60784.0,1.18279088]
[1723308185560,0.000831,60785.0,60784.0,1.28103433]
[1723308186125,0.000831,60785.0,60784.0,1.10219903]
[1723308186274,0.000831,60785.0,60784.0,1.18279088]
[1723308188531,0.000831,60785.0,60784.0,1.18299577]
[1723308189144,0.000831,60785.0,60784.0,1.18299434]
[1723308189926,0.000831,60785.0,60784.0,1.10222429]
[1723308190448,0.000831,60785.0,60784.0,1.28127552]
[1723308190641,0.000831,60785.0,60784.0,1.30580909]
[1723308190859,0.000831,60785.0,60784.0,1.00395575]
[1723308191054,0.000831,60785.0,60784.0,1.28127501]
[1723308191263,0.000831,60785.0,60784.0,1.18299434]
[1723308191760,0.000831,60785.0,60784.0,1.30580909]
[1723308191920,0.000831,60785.0,60784.0,1.00395575]
[1723308192122,0.000831,60785.0,60784.0,1.00395911]
[1723308192314,0.000831,60785.0,60784.0,1.30586043]
[1723308192524,0.000831,60785.0,60784.0,1.00395911]
[1723308193113,0.000831,60785.0,60784.0,1.18304568]
[1723308193312,0.000831,60785.0,60784.0,1.12686038]
[1723308193742,0.000831,60785.0,60784.0,1.18304568]
[1723308193948,0.000831,60785.0,60784.0,1.16304568]
[1723308194141,0.000831,60785.0,60784.0,0.98395911]
[1723308194458,0.000831,60785.0,60784.0,1.18304568]
[1723308194622,0.000831,60785.0,60784.0,0.98395911]
[1723308194826,0.000831,60785.0,60784.0,1.10688269]
[1723308195064,0.000831,60785.0,60784.0,1.16304568]
[1723308195223,0.000831,60785.0,60784.0,1.10688207]
[1723308195706,0.000831,60785.0,60784.0,1.28596864]
[1723308195908,0.000831,60785.0,60784.0,0.98396039]
[1723308196061,0.000831,60785.0,60784.0,1.16301027]
[1723308196826,0.000831,60785.0,60784.0,1.18301027]
[1723308197251,0.000831,60785.0,60784.0,1.25132128]
[1723308197447,0.000831,60785.0,60784.0,1.23132128]
[1723308197871,0.000831,60785.0,60784.0,1.40209804]
[1723308198069,0.000831,60785.0,60784.0,1.23132128]
[1723308198278,0.000831,60785.0,60784.0,1.16301027]
[1723308198712,0.000831,60785.0,60784.0,1.40209231]
[1723308199133,0.000831,60785.0,60784.0,1.23131942]
[1723308199459,0.000831,60785.0,60784.0,1.23146331]
[1723308200159,0.000831,60785.0,60784.0,1.1631525]
[1723308200561,0.000831,60785.0,60784.0,1.1831525]
[1723308200762,0.000831,60785.0,60784.0,1.56604291]
[1723308201006,0.000831,60785.0,60784.0,1.56904291]
[1723308201896,0.000831,60785.0,60784.0,1.73355891]
[1723308202105,0.000831,60785.0,60784.0,1.56904291]
[1723308202481,0.000831,60785.0,60784.0,1.73355891]
[1723308202929,0.000831,60785.0,60784.0,1.56904291]
[1723308203131,0.000831,60785.0,60784.0,1.56901785]
[1723308203546,0.000831,60785.0,60784.0,1.41771645]
[1723308203784,0.000831,60785.0,60784.0,1.5102291]
[1723308203971,0.000831,60785.0,60784.0,1.5890291]
[1723308204151,0.000831,60785.0,60784.0,1.5230291]
[1723308204351,0.145131,60785.0,60784.0,1.3434291]
[1723308204558,0.145131,60785.0,60784.0,0.76062784]
[1723308204762,0.145131,60785.0,60784.0,0.74062784]
[1723308205203,0.15085274,60785.0,60784.0,0.74062784]
[1723308205407,0.15085274,60785.0,60784.0,0.72662784]
[1723308205587,0.15085274,60785.0,60784.0,0.73262784]
[1723308205924,0.15085274,60785.0,60784.0,0.73462784]
[1723308206113,0.15085274,60785.0,60784.0,0.75462784]
[1723308206366,0.15085274,60785.0,60784.0,0.72362784]
[1723308206580,0.15085274,60785.0,60784.0,0.42250302]
[1723308206784,0.15085274,60785.0,60784.0,0.57913723]
[1723308206936,0.15085274,60785.0,60784.0,0.56813723]
[1723308207144,0.15085274,60785.0,60784.0,0.54813723]
[1723308207465,0.145131,60785.0,60784.0,0.58113723]
[1723308207755,0.145131,60785.0,60784.0,0.57513723]
[1723308207956,0.145131,60785.0,60784.0,0.56113723]
[1723308208098,0.145131,60785.0,60784.0,0.58113723]
[1723308208298,0.15085244,60785.0,60784.0,0.58013723]
[1723308208545,0.145131,60785.0,60784.0,0.56813723]
[1723308208763,0.145131,60785.0,60784.0,0.57913723]
[1723308208961,0.145131,60785.0,60784.0,0.75265323]
[1723308209185,0.145131,60785.0,60784.0,0.74365323]
[1723308209468,0.145131,60785.0,60784.0,0.73565323]
[1723308210332,0.145131,60785.0,60784.0,0.72465323]
[1723308210855,0.145131,60785.0,60784.0,0.73565323]
[1723308211208,0.145131,60785.0,60784.0,0.73665323]
[1723308211415,0.145131,60785.0,60784.0,0.72365323]
[1723308211815,0.145131,60785.0,60784.0,0.73565323]
[1723308212042,0.145131,60785.0,60784.0,0.71265323]
[1723308212240,0.145131,60785.0,60784.0,0.72365323]
[1723308212444,0.145131,60785.0,60784.0,0.73565323]
[1723308212669,0.145131,60785.0,60784.0,0.72365323]
[1723308213057,0.145131,60785.0,60784.0,0.57913723]
[1723308213491,0.15081699,60785.0,60784.0,0.57913723]
[1723308213683,0.15081699,60785.0,60784.0,0.73265323]
[1723308213822,0.15081699,60785.0,60784.0,0.72365323]
[1723308214046,0.145131,60785.0,60784.0,0.72365323]
[1723308214358,0.145131,60785.0,60784.0,0.71265524]
[1723308214558,0.145131,60785.0,60784.0,0.72465524]
[1723308214765,0.145131,60785.0,60784.0,0.73565524]
[1723308215188,0.145131,60785.0,60784.0,0.72465524]
[1723308215610,0.145131,60785.0,60784.0,0.73565524]
[1723308215898,0.145131,60785.0,60784.0,0.55913924]
[1723308216097,0.15081699,60785.0,60784.0,0.57113924]
[1723308216273,0.15081699,60785.0,60784.0,0.73565524]
[1723308216499,0.145131,60785.0,60784.0,0.77279139]
[1723308216830,0.145131,60785.0,60784.0,0.71265524]
[1723308217032,0.145131,60785.0,60784.0,0.77279139]
[1723308217525,0.145131,60785.0,60784.0,0.7236531]
[1723308217750,0.145131,60785.0,60784.0,0.77280804]
[1723308217942,0.145131,60785.0,60784.0,0.7356531]
[1723308218151,0.145131,60785.0,60784.0,0.7246531]
[1723308218287,0.145131,60785.0,60784.0,0.7236531]
[1723308218508,0.145131,60785.0,60784.0,0.7356531]
[1723308218703,0.145131,60785.0,60784.0,0.7556531]
[1723308218904,0.145131,60785.0,60784.0,0.7356531]
[1723308219342,0.145131,60785.0,60784.0,0.7436531]
[1723308219735,0.145131,60785.0,60784.0,0.7556531]
[1723308219938,0.145131,60785.0,60784.0,0.81838552]
[1723308220162,0.145131,60785.0,60784.0,0.82938552]
[1723308220758,0.145131,60785.0,60784.0,0.81838552]
[1723308220983,0.145131,60785.0,60784.0,0.82938552]
[1723308221174,0.145131,60785.0,60784.0,0.68075144]
[1723308221380,0.145131,60785.0,60784.0,0.81738]
[1723308221542,0.145131,60785.0,60784.0,0.81838]
[1723308221746,0.145131,60785.0,60784.0,0.82038]
[1723308222149,0.145131,60785.0,60784.0,0.85895747]
[1723308222357,0.145131,60785.0,60784.0,0.76064758]
[1723308223813,0.145131,60785.0,60784.0,0.85895747]
[1723308225637,0.145131,60785.0,60784.0,0.85895355]
[1723308226774,0.145131,60785.0,60784.0,0.72232891]
[1723308226918,0.145131,60785.0,60784.0,0.85895355]
[1723308227739,0.145131,60785.0,60784.0,0.76064366]
[1723308227949,0.145131,60785.0,60784.0,0.85895355]
[1723308228151,0.145131,60785.0,60784.0,0.76064366]
[1723308230710,0.145131,60785.0,60784.0,0.83944366]
[1723308232513,0.145131,60785.0,60784.0,0.83945102]
[1723308232678,0.145131,60785.0,60784.0,0.76065102]
[1723308232933,0.145131,60785.0,60784.0,0.8098438]
[1723308233165,0.145131,60785.0,60784.0,0.74065102]
[1723308233549,0.17350602,60785.0,60784.0,0.74065102]
[1723308235024,0.145131,60785.0,60784.0,0.74065102]
[1723308235602,0.145131,60785.0,60784.0,0.72665102]
[1723308236045,0.145131,60785.0,60784.0,0.71265102]
[1723308236204,0.145131,60785.0,60784.0,0.72665935]
[1723308236642,0.145131,60785.0,60784.0,0.72665994]
[1723308237093,0.1735315,60785.0,60784.0,0.74065994]
[1723308237283,0.145131,60785.0,60784.0,0.74065994]
[1723308237940,0.145131,60785.0,60784.0,0.60401902]
[1723308238164,0.145131,60785.0,60784.0,0.74065761]
[1723308240048,0.145131,60785.0,60784.0,0.74065675]
[1723308240775,0.145131,60785.0,60784.0,0.76065675]
[1723308242266,0.145131,60785.0,60784.0,0.62401902]